Workbook

Sheet Sheriffs and Deputies
A2: Measurement Date: 6/30/2015
A3: Membership Goup: Sheriffs and Deputies
H4: DEFERRED OUTFLOWS OF RESOURCES | M4: DEFERRED INFLOWS OF RESOURCES
H5: (Excluding Employer Specific Amounts)* | M5: (Excluding Employer Specific Amounts) *
A6: Employer ID # | B6: Employer Name | C6: 2021 Actual Employer Contributions | D6: Employer Allocation Percentage ** | E6: Net Pension Liability (NPL)/ (Asset) | F6: Change in NPL due to 1% Decrease in the Actuarial Assumed Investment Return (6.00 %) | G6: Change in NPL due to 1% Increase in the Actuarial Assumed Investment Return (8.00%) | H6: Differences Between Expected and Actual Experience | I6: Changes of Assumptions | J6: Difference Between Projected and Actual Investment Earnings on Pension Plan Investments | K6: Total Deferred Outflows of Resources | M6: Differences Between Expected and Actual Experience | N6: Changes of Assumptions | O6: Difference Between Projected and Actual Investment Earnings on Pension Plan Investments | P6: Total Deferred Inflows of Resources | Q6: Total Proportionate Share of Allocable Plan Pension Expense
C7: 11745747.02 | D7: 1 | E7: -140969430 | F7: -39131940 | G7: -226195336 | H7: 9423262 | I7: 1540868 | J7: 17136989 | K7: =+H7+I7+J7 -> 28101119 | M7: 942036 | N7: 6614869 | O7: 138537163 | P7: =+M7+N7+O7 -> 146094068 | Q7: -23836136
A8: 01201 | B8: ADAIR COUNTY | C8: 40097.81 | D8: =+C8/$C$108 -> 0.003413815224 | E8: =ROUND(D8*$E$7,0) -> -481244 | F8: =ROUND(D8*$F$7,0) -> -133589 | G8: =ROUND(D8*$G$7,0) -> -772189 | H8: =ROUND(D8*$H$7,0) -> 32169 | I8: =ROUND(D8*$I$7,0) -> 5260 | J8: =ROUND(D8*$J$7,0) -> 58503 | K8: =ROUND(SUM(H8:J8),0) -> 95932 | M8: =ROUND(D8*$M$7,0) -> 3216 | N8: =ROUND(D8*$N$7,0) -> 22582 | O8: =ROUND(D8*$O$7,0) -> 472940 | P8: =ROUND(SUM(M8:O8),0) -> 498738 | Q8: =ROUND(D8*$Q$7,0) -> -81372
A9: 02201 | B9: ADAMS COUNTY | C9: 42734.03 | D9: =+C9/$C$108 -> 0.003638255611 | E9: =ROUND(D9*$E$7,0) -> -512883 | F9: =ROUND(D9*$F$7,0) -> -142372 | G9: =ROUND(D9*$G$7,0) -> -822956 | H9: =ROUND(D9*$H$7,0) -> 34284 | I9: =ROUND(D9*$I$7,0) -> 5606 | J9: =ROUND(D9*$J$7,0) -> 62349 | K9: =ROUND(SUM(H9:J9),0) -> 102239 | M9: =ROUND(D9*$M$7,0) -> 3427 | N9: =ROUND(D9*$N$7,0) -> 24067 | O9: =ROUND(D9*$O$7,0) -> 504034 | P9: =ROUND(SUM(M9:O9),0) -> 531528 | Q9: =ROUND(D9*$Q$7,0) -> -86722
A10: 03201 | B10: ALLAMAKEE COUNTY | C10: 68498.66 | D10: 0.005831784039 | E10: -822103 | F10: -228209 | G10: -1319122 | H10: 54954 | I10: 8986 | J10: 99939 | K10: 163879 | M10: 5494 | N10: 38576 | O10: 807919 | P10: 851989 | Q10: -139007
A11: 04208 | B11: APPANOOSE COUNTY SHERIFF'S DEPT | C11: 55658.52 | D11: 0.004738610486 | E11: -667999 | F11: -185431 | G11: -1071852 | H11: 44653 | I11: 7302 | J11: 81206 | K11: 133161 | M11: 4464 | N11: 31345 | O11: 656474 | P11: 692283 | Q11: -112950
A12: 05201 | B12: AUDUBON COUNTY | C12: 35349.66 | D12: 0.003009571034 | E12: -424258 | F12: -117770 | G12: -680751 | H12: =ROUND(D12*$H$7,0) -> 28360 | I12: 4637 | J12: 51575 | K12: 84572 | M12: 2835 | N12: 19908 | O12: 416937 | P12: 439680 | Q12: -71737
A13: 06201 | B13: BENTON COUNTY | C13: 95179.89 | D13: 0.008103349224 | E13: -1142325 | F13: -317100 | G13: -1832940 | H13: 76360 | I13: 12486 | J13: 138867 | K13: 227713 | M13: 7634 | N13: 53603 | O13: 1122615 | P13: 1183852 | Q13: -193153
A14: 07201 | B14: BLACK HAWK COUNTY | C14: 512163.55 | D14: 0.04360417001 | E14: -6146855 | F14: -1706316 | G14: -9863060 | H14: =ROUND(D14*$H$7,0)+1 -> 410895 | I14: 67188 | J14: 747244 | K14: 1225327 | M14: =ROUND(D14*$M$7,0)+1 -> 41078 | N14: =ROUND(D14*$N$7,0)-1 -> 288435 | O14: 6040798 | P14: 6370311 | Q14: -1039355
A15: 08201 | B15: BOONE COUNTY | C15: 89634.67 | D15: 0.007631244726 | E15: -1075772 | F15: -298625 | G15: -1726152 | H15: 71911 | I15: 11759 | J15: 130777 | K15: 214447 | M15: 7189 | N15: 50480 | O15: 1057211 | P15: 1114880 | Q15: -181899
A16: 09201 | B16: BREMER COUNTY | C16: 97722.05 | D16: 0.008319781606 | E16: -1172835 | F16: -325569 | G16: -1881896 | H16: 78399 | I16: 12820 | J16: 142576 | K16: 233795 | M16: 7838 | N16: 55034 | O16: 1152599 | P16: 1215471 | Q16: -198311
A17: 10201 | B17: BUCHANAN COUNTY | C17: 73953.19 | D17: 0.006296167445 | E17: -887567 | F17: -246381 | G17: -1424164 | H17: 59330 | I17: 9702 | J17: 107897 | K17: 176929 | M17: 5931 | N17: 41648 | O17: 872253 | P17: 919832 | Q17: -150076
A18: 11201 | B18: BUENA VISTA COUNTY | C18: 95626.19 | D18: 0.008141345956 | E18: -1147681 | F18: -318587 | G18: -1841534 | H18: 76718 | I18: 12545 | J18: 139518 | K18: 228781 | M18: 7669 | N18: 53854 | O18: 1127879 | P18: 1189402 | Q18: -194058
A19: 12201 | B19: BUTLER COUNTY | C19: 73652.16 | D19: 0.006270538594 | E19: -883954 | F19: -245378 | G19: -1418367 | H19: 59089 | I19: 9662 | J19: 107458 | K19: 176209 | M19: 5907 | N19: 41479 | O19: 868703 | P19: 916089 | Q19: -149465
A20: 13201 | B20: CALHOUN COUNTY | C20: 47127.21 | D20: 0.00401227865 | E20: -565609 | F20: -157008 | G20: -907559 | H20: 37809 | I20: 6182 | J20: 68758 | K20: 112749 | M20: 3780 | N20: 26541 | O20: 555850 | P20: 586171 | Q20: -95637
A21: 14201 | B21: CARROLL COUNTY | C21: 63283.67 | D21: 0.005387794398 | E21: -759514 | F21: -210835 | G21: -1218694 | H21: 50771 | I21: 8302 | J21: 92331 | K21: 151404 | M21: 5075 | N21: 35640 | O21: 746410 | P21: 787125 | Q21: -128424
A22: 15201 | B22: CASS COUNTY | C22: 56105.6 | D22: 0.004776673625 | E22: -673365 | F22: -186921 | G22: -1080461 | H22: 45012 | I22: 7360 | J22: 81858 | K22: 134230 | M22: 4500 | N22: 31597 | O22: 661747 | P22: 697844 | Q22: -113857
A23: 16201 | B23: CEDAR COUNTY | C23: 95071.43 | D23: 0.008094115243 | E23: -1141023 | F23: -316738 | G23: -1830851 | H23: 76273 | I23: 12472 | J23: 138709 | K23: 227454 | M23: 7625 | N23: 53542 | O23: 1121336 | P23: 1182503 | Q23: -192932
A24: 17201 | B24: CERRO GORDO COUNTY | C24: 131234.23 | D24: 0.01117291474 | E24: -1575039 | F24: -437218 | G24: -2527261 | H24: 105285 | I24: 17216 | J24: 191470 | K24: 313971 | M24: 10525 | N24: 73907 | O24: 1547864 | P24: 1632296 | Q24: -266319
A25: 18201 | B25: CHEROKEE COUNTY | C25: 43481.97 | D25: 0.003701933127 | E25: -521859 | F25: -144864 | G25: -837360 | H25: 34884 | I25: 5704 | J25: 63440 | K25: 104028 | M25: 3487 | N25: 24488 | O25: 512855 | P25: 540830 | Q25: -88240
A26: 19201 | B26: CHICKASAW COUNTY | C26: 62045.17 | D26: 0.005282351978 | E26: -744650 | F26: -206709 | G26: -1194843 | H26: 49777 | I26: 8139 | J26: 90524 | K26: 148440 | M26: 4976 | N26: 34942 | O26: 731802 | P26: 771720 | Q26: -125911
A27: 20201 | B27: CLARKE COUNTY | C27: 44809.01 | D27: 0.003814913596 | E27: -537786 | F27: -149285 | G27: -862916 | H27: 35949 | I27: 5878 | J27: 65376 | K27: 107203 | M27: 3594 | N27: 25235 | O27: 528507 | P27: 557336 | Q27: -90933
A28: 21201 | B28: CLAY COUNTY | C28: 77177.67 | D28: 0.00657069064 | E28: -926267 | F28: -257124 | G28: -1486260 | H28: 61917 | I28: 10125 | J28: 112602 | K28: 184644 | M28: 6190 | N28: 43464 | O28: 910285 | P28: 959939 | Q28: -156620
A29: 22201 | B29: CLAYTON COUNTY | C29: 88301.81 | D29: 0.007517768759 | E29: -1059776 | F29: -294185 | G29: -1700484 | H29: 70842 | I29: 11584 | J29: 128832 | K29: 211258 | M29: 7082 | N29: 49729 | O29: 1041490 | P29: 1098301 | Q29: -179195
A30: 23201 | B30: CLINTON COUNTY | C30: 171987.39 | D30: 0.01464252463 | E30: -2064148 | F30: -572990 | G30: -3312071 | H30: 137980 | I30: 22562 | J30: 250929 | K30: 411471 | M30: 13794 | N30: 96858 | O30: 2028534 | P30: 2139186 | Q30: -349021
A31: 24201 | B31: CRAWFORD COUNTY | C31: 67449.76 | D31: 0.005742483631 | E31: -809515 | F31: -224715 | G31: -1298923 | H31: 54113 | I31: 8848 | J31: 98409 | K31: 161370 | M31: 5410 | N31: 37986 | O31: 795547 | P31: 838943 | Q31: -136879
A32: 25201 | B32: DALLAS COUNTY | C32: 223082.11 | D32: 0.01899258596 | E32: -2677374 | F32: -743217 | G32: -4296034 | H32: 178972 | I32: 29265 | J32: 325476 | K32: 533713 | M32: 17892 | N32: 125633 | O32: 2631179 | P32: 2774704 | Q32: -452710
A33: 26201 | B33: DAVIS COUNTY | C33: 34600.84 | D33: 0.002945818596 | E33: -415270 | F33: -115276 | G33: -666330 | H33: =ROUND(D33*$H$7,0) -> 27759 | I33: 4539 | J33: 50482 | K33: 82780 | M33: 2775 | N33: 19486 | O33: 408105 | P33: 430366 | Q33: -70217
A34: 27201 | B34: DECATUR COUNTY | C34: 32729.98 | D34: 0.002786538816 | E34: -392817 | F34: -109043 | G34: -630302 | H34: =ROUND(D34*$H$7,0) -> 26258 | I34: 4294 | J34: 47753 | K34: 78305 | M34: 2625 | N34: 18433 | O34: 386039 | P34: 407097 | Q34: -66420
A35: 28201 | B35: DELAWARE COUNTY | C35: 95560.66 | D35: 0.008135766915 | E35: -1146894 | F35: -318368 | G35: -1840273 | H35: 76665 | I35: 12536 | J35: 139423 | K35: 228624 | M35: 7664 | N35: 53817 | O35: 1127106 | P35: 1188587 | Q35: -193925
A36: 29201 | B36: DES MOINES COUNTY | C36: 138698.29 | D36: 0.0118083839 | E36: -1664621 | F36: -462085 | G36: -2671001 | H36: 111273 | I36: 18195 | J36: 202360 | K36: 331828 | M36: 11124 | N36: 78111 | O36: 1635900 | P36: 1725135 | Q36: -281466
A37: 30201 | B37: DICKINSON COUNTY | C37: 65112.8 | D37: 0.005543521403 | E37: -781467 | F37: -216929 | G37: -1253919 | H37: 52238 | I37: 8542 | J37: 94999 | K37: 155779 | M37: 5222 | N37: 36670 | O37: 767984 | P37: 809876 | Q37: -132136
A38: 31201 | B38: DUBUQUE COUNTY | C38: 580125.31 | D38: 0.04939024389 | E38: -6962515 | F38: -1932736 | G38: -11171843 | H38: =ROUND(D38*$H$7,0)+1 -> 465418 | I38: 76104 | J38: 846400 | K38: 1387922 | M38: =ROUND(D38*$M$7,0)+1 -> 46528 | N38: =ROUND(D38*$N$7,0)-1 -> 326709 | O38: 6842384 | P38: 7215621 | Q38: -1177273
A39: 32201 | B39: EMMET COUNTY | C39: 50087.4 | D39: 0.004264300935 | E39: -601136 | F39: -166870 | G39: -964565 | H39: 40184 | I39: 6571 | J39: 73077 | K39: 119832 | M39: 4017 | N39: 28208 | O39: 590764 | P39: 622989 | Q39: -101644
A40: 33201 | B40: FAYETTE COUNTY | C40: 80774.36 | D40: 0.006876902751 | E40: -969433 | F40: -269107 | G40: -1555523 | H40: 64803 | I40: 10596 | J40: 117849 | K40: 193248 | M40: 6478 | N40: 45490 | O40: 952707 | P40: 1004675 | Q40: -163919
A41: 34201 | B41: FLOYD COUNTY | C41: 78709.58 | D41: 0.006701113166 | E41: -944652 | F41: -262228 | G41: -1515761 | H41: 63146 | I41: 10326 | J41: 114837 | K41: 188309 | M41: 6313 | N41: 44327 | O41: 928353 | P41: 978993 | Q41: -159729
A42: 35201 | B42: FRANKLIN COUNTY | C42: 38941.31 | D42: 0.003315354054 | E42: -467364 | F42: -129736 | G42: -749918 | H42: =ROUND(D42*$H$7,0) -> 31241 | I42: 5109 | J42: 56815 | K42: 93165 | M42: 3123 | N42: 21931 | O42: 459300 | P42: 484354 | Q42: -79025
A43: 36201 | B43: FREMONT COUNTY | C43: 49416.36 | D43: 0.004207170469 | E43: -593082 | F43: -164635 | G43: -951642 | H43: 39645 | I43: 6483 | J43: 72098 | K43: 118226 | M43: 3963 | N43: 27830 | O43: 582849 | P43: 614642 | Q43: -100283
A44: 37201 | B44: GREENE COUNTY | C44: 51401.2 | D44: 0.004376154187 | E44: -616904 | F44: -171247 | G44: -989866 | H44: 41238 | I44: 6743 | J44: 74994 | K44: 122975 | M44: 4122 | N44: 28948 | O44: 606260 | P44: 639330 | Q44: -104311
A45: 38201 | B45: GRUNDY COUNTY | C45: 75557.8 | D45: 0.006432779445 | E45: -906825 | F45: -251727 | G45: -1455065 | H45: 60618 | I45: 9912 | J45: 110238 | K45: 180768 | M45: 6060 | N45: 42552 | O45: 891179 | P45: 939791 | Q45: -153333
A46: 39201 | B46: GUTHRIE COUNTY | C46: 56849 | D46: 0.004839964619 | E46: -682287 | F46: -189397 | G46: -1094777 | H46: 45608 | I46: 7458 | J46: 82942 | K46: 136008 | M46: 4559 | N46: 32016 | O46: 670515 | P46: 707090 | Q46: -115366
A47: 40201 | B47: HAMILTON COUNTY | C47: 67135.52 | D47: 0.005715730118 | E47: -805743 | F47: -223668 | G47: -1292871 | H47: 53861 | I47: 8807 | J47: 97950 | K47: 160618 | M47: 5384 | N47: 37809 | O47: 791841 | P47: 835034 | Q47: -136241
A48: 41201 | B48: HANCOCK COUNTY | C48: 54815.87 | D48: 0.004666869626 | E48: -657886 | F48: -182624 | G48: -1055624 | H48: 43977 | I48: 7191 | J48: 79976 | K48: 131144 | M48: 4396 | N48: 30871 | O48: 646535 | P48: 681802 | Q48: -111240
A49: 42201 | B49: HARDIN COUNTY | C49: 68069.27 | D49: 0.005795226977 | E49: -816950 | F49: -226778 | G49: -1310853 | H49: 54610 | I49: 8930 | J49: 99313 | K49: 162853 | M49: 5459 | N49: 38335 | O49: 802854 | P49: 846648 | Q49: -138136
A50: 43201 | B50: HARRISON COUNTY | C50: 63453.78 | D50: 0.005402277087 | E50: -761556 | F50: -211402 | G50: -1221970 | H50: 50907 | I50: 8324 | J50: 92579 | K50: 151810 | M50: 5089 | N50: 35735 | O50: 748416 | P50: 789240 | Q50: -128769
A51: 44201 | B51: HENRY COUNTY | C51: 75062.04 | D51: 0.006390571828 | E51: -900875 | F51: -250075 | G51: -1445518 | H51: 60220 | I51: 9847 | J51: 109515 | K51: 179582 | M51: 6020 | N51: 42273 | O51: 885332 | P51: 933625 | Q51: -152327
A52: 45201 | B52: HOWARD COUNTY | C52: 55600.36 | D52: 0.004733658907 | E52: -667301 | F52: -185237 | G52: -1070732 | H52: 44607 | I52: 7294 | J52: 81121 | K52: 133022 | M52: 4459 | N52: 31313 | O52: 655788 | P52: 691560 | Q52: -112832
A53: 46201 | B53: HUMBOLDT COUNTY | C53: 58865.34 | D53: 0.005011630159 | E53: -706487 | F53: -196115 | G53: -1133607 | H53: 47226 | I53: 7722 | J53: 85884 | K53: 140832 | M53: 4721 | N53: 33151 | O53: 694297 | P53: 732169 | Q53: -119458
A54: 47201 | B54: IDA COUNTY | C54: 55363.44 | D54: 0.004713488202 | E54: -664458 | F54: -184448 | G54: -1066169 | H54: 44416 | I54: 7263 | J54: 80775 | K54: 132454 | M54: 4440 | N54: 31179 | O54: 652993 | P54: 688612 | Q54: -112351
A55: 48201 | B55: IOWA COUNTY | C55: 75076.33 | D55: 0.006391788438 | E55: -901047 | F55: -250123 | G55: -1445793 | H55: 60231 | I55: 9849 | J55: 109536 | K55: 179616 | M55: 6021 | N55: 42281 | O55: 885500 | P55: 933802 | Q55: -152356
A56: 49201 | B56: JACKSON COUNTY | C56: 69310.65 | D56: 0.005900914593 | E56: -831849 | F56: -230914 | G56: -1334759 | H56: 55606 | I56: 9093 | J56: 101124 | K56: 165823 | M56: 5559 | N56: 39034 | O56: 817496 | P56: 862089 | Q56: -140655
A57: 50201 | B57: JASPER COUNTY | C57: 118054.36 | D57: 0.01005081753 | E57: -1416858 | F57: -393308 | G57: -2273448 | H57: 94711 | I57: 15487 | J57: 172241 | K57: 282439 | M57: 9468 | N57: 66485 | O57: 1392412 | P57: 1468365 | Q57: -239573
A58: 51201 | B58: JEFFERSON COUNTY | C58: 68701.23 | D58: 0.005849030282 | E58: -824534 | F58: -228884 | G58: -1323023 | H58: 55117 | I58: 9013 | J58: 100235 | K58: 164365 | M58: 5510 | N58: 38691 | O58: 810308 | P58: 854509 | Q58: -139418
A59: 52201 | B59: JOHNSON COUNTY | C59: 538351.19 | D59: 0.04583371233 | E59: -6461152 | F59: -1793562 | G59: -10367372 | H59: =ROUND(D59*$H$7,0)+1 -> 431904 | I59: 70624 | J59: 785452 | K59: 1287980 | M59: =ROUND(D59*$M$7,0)+1 -> 43178 | N59: =ROUND(D59*$N$7,0)-1 -> 303183 | O59: 6349672 | P59: 6696033 | Q59: -1092499
A60: 53201 | B60: JONES COUNTY | C60: 73683.69 | D60: 0.00627322297 | E60: -884333 | F60: -245483 | G60: -1418974 | H60: 59114 | I60: 9666 | J60: 107504 | K60: 176284 | M60: 5910 | N60: 41497 | O60: 869075 | P60: 916482 | Q60: -149529
A61: 54201 | B61: KEOKUK COUNTY | C61: 38763.84 | D61: 0.003300244755 | E61: -465234 | F61: -129145 | G61: -746500 | H61: =ROUND(D61*$H$7,0) -> 31099 | I61: 5085 | J61: 56556 | K61: 92740 | M61: 3109 | N61: 21831 | O61: 457207 | P61: 482147 | Q61: -78665
A62: 55201 | B62: KOSSUTH COUNTY | C62: 61057.34 | D62: 0.005198250898 | E62: -732794 | F62: -203418 | G62: -1175820 | H62: 48984 | I62: 8010 | J62: 89082 | K62: 146076 | M62: 4897 | N62: 34386 | O62: 720151 | P62: 759434 | Q62: -123906
A63: 56201 | B63: LEE COUNTY | C63: 106335.25 | D63: 0.009053085327 | E63: -1276208 | F63: -354265 | G63: -2047766 | H63: 85310 | I63: 13950 | J63: 155143 | K63: 254403 | M63: 8528 | N63: 59885 | O63: 1254189 | P63: 1322602 | Q63: -215791
A64: 57210 | B64: LINN COUNTY SHERIFF'S DEPARTMENT | C64: 1095945.14 | D64: 0.09330569934 | E64: -13153251 | F64: =ROUND(D64*$F$7,0)-1 -> -3651234 | G64: =ROUND(D64*$G$7,0)+1 -> -21105313 | H64: =ROUND(D64*$H$7,0)+1 -> 879245 | I64: 143772 | J64: =ROUND(D64*$J$7,0)+1 -> 1598980 | K64: 2621997 | M64: =ROUND(D64*$M$7,0)+1 -> 87898 | N64: =ROUND(D64*$N$7,0)-1 -> 617204 | O64: 12926307 | P64: 13631409 | Q64: -2224047
A65: 58201 | B65: LOUISA COUNTY | C65: 63414.35 | D65: 0.005398920128 | E65: -761083 | F65: -211270 | G65: -1221211 | H65: 50875 | I65: 8319 | J65: 92521 | K65: 151715 | M65: 5086 | N65: 35713 | O65: 747951 | P65: 788750 | Q65: -128689
A66: 59201 | B66: LUCAS COUNTY | C66: 27647.26 | D66: 0.002353810273 | E66: -331815 | F66: -92109 | G66: -532421 | H66: =ROUND(D66*$H$7,0) -> 22181 | I66: 3627 | J66: 40337 | K66: 66145 | M66: 2217 | N66: 15570 | O66: 326090 | P66: 343877 | Q66: -56106
A67: 60201 | B67: LYON COUNTY | C67: 75420.39 | D67: 0.006421080743 | E67: -905176 | F67: -251269 | G67: -1452419 | H67: 60508 | I67: 9894 | J67: 110038 | K67: 180440 | M67: 6049 | N67: 42475 | O67: 889558 | P67: 938082 | Q67: -153054
A68: 61201 | B68: MADISON COUNTY | C68: 48400.34 | D68: 0.004120669372 | E68: -580888 | F68: -161250 | G68: -932076 | H68: 38830 | I68: 6349 | J68: 70616 | K68: 115795 | M68: 3882 | N68: 27258 | O68: 570866 | P68: 602006 | Q68: -98221
A69: 62201 | B69: MAHASKA COUNTY | C69: 58794.34 | D69: 0.005005585417 | E69: -705635 | F69: -195878 | G69: -1132240 | H69: 47169 | I69: 7713 | J69: 85781 | K69: 140663 | M69: 4715 | N69: 33111 | O69: 693460 | P69: 731286 | Q69: -119314
A70: 63201 | B70: MARION COUNTY | C70: 114362.24 | D70: 0.009736480771 | E70: -1372546 | F70: -381007 | G70: -2202347 | H70: 91749 | I70: 15003 | J70: 166854 | K70: 273606 | M70: 9172 | N70: 64406 | O70: 1348864 | P70: 1422442 | Q70: -232080
A71: 64201 | B71: MARSHALL COUNTY | C71: 126669.37 | D71: 0.01078427535 | E71: -1520253 | F71: -422010 | G71: -2439353 | H71: 101623 | I71: 16617 | J71: 184810 | K71: 303050 | M71: 10159 | N71: 71337 | O71: 1494023 | P71: 1575519 | Q71: -257055
A72: 65201 | B72: MILLS COUNTY | C72: 69954.54 | D72: 0.005955733584 | E72: -839576 | F72: -233059 | G72: -1347159 | H72: 56122 | I72: 9177 | J72: 102063 | K72: 167362 | M72: 5611 | N72: 39396 | O72: 825090 | P72: 870097 | Q72: -141962
A73: 66207 | B73: MITCHELL COUNTY SHERIFF'S DEPT | C73: 50761.85 | D73: =+C73/$C$108 -> 0.004321721719 | E73: =ROUND(D73*$E$7,0) -> -609231 | F73: =ROUND(D73*$F$7,0) -> -169117 | G73: =ROUND(D73*$G$7,0) -> -977553 | H73: =ROUND(D73*$H$7,0) -> 40725 | I73: =ROUND(D73*$I$7,0) -> 6659 | J73: =ROUND(D73*$J$7,0) -> 74061 | K73: =ROUND(SUM(H73:J73),0) -> 121445 | M73: =ROUND(D73*$M$7,0) -> 4071 | N73: =ROUND(D73*$N$7,0) -> 28588 | O73: =ROUND(D73*$O$7,0) -> 598719 | P73: =ROUND(SUM(M73:O73),0) -> 631378 | Q73: =ROUND(D73*$Q$7,0) -> -103013
A74: 67201 | B74: MONONA COUNTY | C74: 46098.41 | D74: 0.0039246895 | E74: -553261 | F74: -153581 | G74: -887746 | H74: 36983 | I74: 6047 | J74: 67257 | K74: 110287 | M74: 3697 | N74: 25961 | O74: 543715 | P74: 573373 | Q74: -93549
A75: 68201 | B75: MONROE COUNTY | C75: 32507.57 | D75: 0.002767603452 | E75: -390147 | F75: -108302 | G75: -626019 | H75: =ROUND(D75*$H$7,0) -> 26080 | I75: =ROUND(D75*$I$7,0) -> 4265 | J75: 47428 | K75: 77773 | M75: 2607 | N75: 18307 | O75: 383416 | P75: 404330 | Q75: -65969
A76: 69201 | B76: MONTGOMERY COUNTY | C76: 52194.23 | D76: 0.00444367054 | E76: -626422 | F76: -173889 | G76: -1005138 | H76: 41874 | I76: 6847 | J76: 76151 | K76: 124872 | M76: 4186 | N76: 29394 | O76: 615614 | P76: 649194 | Q76: -105920
A77: 70201 | B77: MUSCATINE COUNTY | C77: 158457.58 | D77: 0.0134906345 | E77: -1901767 | F77: -527915 | G77: -3051519 | H77: 127126 | I77: 20787 | J77: 231189 | K77: 379102 | M77: 12709 | N77: 89239 | O77: 1868954 | P77: 1970902 | Q77: -321565
A78: 71201 | B78: O'BRIEN COUNTY | C78: 65097.01 | D78: 0.005542177087 | E78: -781278 | F78: -216876 | G78: -1253615 | H78: 52225 | I78: 8540 | J78: 94976 | K78: 155741 | M78: 5221 | N78: 36661 | O78: 767797 | P78: 809679 | Q78: -132104
A79: 72201 | B79: OSCEOLA COUNTY | C79: 53977.01 | D79: 0.004595451435 | E79: -647818 | F79: -179829 | G79: -1039470 | H79: 43304 | I79: 7081 | J79: 78752 | K79: 129137 | M79: 4329 | N79: 30398 | O79: 636641 | P79: 671368 | Q79: -109538
A80: 73201 | B80: PAGE COUNTY | C80: 53187.22 | D80: 0.004528210927 | E80: -638339 | F80: -177198 | G80: -1024260 | H80: 42671 | I80: 6977 | J80: 77600 | K80: 127248 | M80: 4266 | N80: 29954 | O80: 627325 | P80: 661545 | Q80: -107935
A81: 74201 | B81: PALO ALTO COUNTY | C81: 50597.4 | D81: 0.004307720906 | E81: -607257 | F81: -168569 | G81: -974386 | H81: 40593 | I81: 6638 | J81: 73821 | K81: 121052 | M81: 4058 | N81: 28495 | O81: 596779 | P81: 629332 | Q81: -102679
A82: 75201 | B82: PLYMOUTH COUNTY | C82: 87007.86 | D82: 0.007407605481 | E82: -1044246 | F82: -289874 | G82: -1675566 | H82: 69804 | I82: 11414 | J82: 126944 | K82: 208162 | M82: 6978 | N82: 49000 | O82: 1026229 | P82: 1082207 | Q82: -176569
A83: 76201 | B83: POCAHONTAS COUNTY | C83: 49019.44 | D83: 0.004173377812 | E83: -588319 | F83: -163312 | G83: -943999 | H83: 39327 | I83: 6431 | J83: 71519 | K83: 117277 | M83: 3931 | N83: 27606 | O83: 578168 | P83: 609705 | Q83: -99477
A84: 77209 | B84: POLK COUNTY ADMINISTRATION OFFICE BLDG | C84: 1264251.1 | D84: 0.1076347973 | E84: =ROUND(D84*$E$7,0)-1 -> -15173217 | F84: =ROUND(D84*$F$7,0)-1 -> -4211959 | G84: =ROUND(D84*$G$7,0)+1 -> -24346488 | H84: =ROUND(D84*$H$7,0)+1 -> 1014272 | I84: =ROUND(D84*$I$7,0)-1 -> 165850 | J84: =ROUND(D84*$J$7,0)+1 -> 1844537 | K84: 3024659 | M84: =ROUND(D84*$M$7,0)+1 -> 101397 | N84: =ROUND(D84*$N$7,0)-1 -> 711989 | O84: =ROUND(D84*$O$7,0)+1 -> 14911420 | P84: 15724806 | Q84: =ROUND(D84*$Q$7,0)-1 -> -2565599
A85: 78201 | B85: POTTAWATTAMIE COUNTY | C85: 387726.05 | D85: 0.03300990983 | E85: -4653388 | F85: -1291742 | G85: -7466688 | H85: =ROUND(D85*$H$7,0)+1 -> 311062 | I85: 50864 | J85: 565690 | K85: 927616 | M85: =ROUND(D85*$M$7,0)+1 -> 31098 | N85: 218356 | O85: 4573099 | P85: 4822553 | Q85: -786829
A86: 79201 | B86: POWESHIEK COUNTY | C86: 83342.64 | D86: 0.007095558917 | E86: -1000257 | F86: -277663 | G86: -1604982 | H86: 66863 | I86: 10933 | J86: 121597 | K86: 199393 | M86: 6684 | N86: 46936 | O86: 982999 | P86: 1036619 | Q86: -169131
A87: 80201 | B87: RINGGOLD COUNTY | C87: 31522.94 | D87: 0.002683774812 | E87: -378330 | F87: -105021 | G87: -607057 | H87: =ROUND(D87*$H$7,0) -> 25290 | I87: 4135 | J87: 45992 | K87: 75417 | M87: 2528 | N87: 17753 | O87: 371803 | P87: 392084 | Q87: -63971
A88: 81201 | B88: SAC COUNTY | C88: 57634.29 | D88: 0.00490682201 | E88: -691712 | F88: -192013 | G88: -1109900 | H88: 46238 | I88: 7561 | J88: 84088 | K88: 137887 | M88: 4622 | N88: 32458 | O88: 679777 | P88: 716857 | Q88: -116960
A89: 82201 | B89: SCOTT COUNTY | C89: 361811.42 | D89: 0.03080361082 | E89: -4342367 | F89: -1205405 | G89: -6967633 | H89: =ROUND(D89*$H$7,0)+1 -> 290271 | I89: 47464 | J89: 527881 | K89: 865616 | M89: 29018 | N89: 203762 | O89: 4267445 | P89: 4500225 | Q89: -734239
A90: 83201 | B90: SHELBY COUNTY | C90: 59447.26 | D90: 0.005061173197 | E90: -713471 | F90: -198054 | G90: -1144814 | H90: 47693 | I90: 7799 | J90: 86733 | K90: 142225 | M90: 4768 | N90: 33479 | O90: 701161 | P90: 739408 | Q90: -120639
A91: 84201 | B91: SIOUX COUNTY | C91: 102459.41 | D91: 0.008723107166 | E91: -1229691 | F91: -341352 | G91: -1973126 | H91: 82200 | I91: 13441 | J91: 149488 | K91: 245129 | M91: 8217 | N91: 57702 | O91: 1208475 | P91: 1274394 | Q91: -207925
A92: 85201 | B92: STORY COUNTY | C92: 231863.71 | D92: 0.01974022679 | E92: -2782769 | F92: -772473 | G92: -4465147 | H92: 186017 | I92: 30417 | J92: 338288 | K92: 554722 | M92: 18596 | N92: 130579 | O92: 2734755 | P92: 2883930 | Q92: -470531
A93: 86201 | B93: TAMA COUNTY | C93: 79973.43 | D93: 0.006808713815 | E93: -959821 | F93: -266438 | G93: -1540099 | H93: 64160 | I93: 10491 | J93: 116681 | K93: 191332 | M93: 6414 | N93: 45039 | O93: 943260 | P93: 994713 | Q93: -162293
A94: 87201 | B94: TAYLOR COUNTY | C94: 48341.82 | D94: 0.004115687143 | E94: -580186 | F94: -161055 | G94: -930949 | H94: 38783 | I94: 6342 | J94: 70530 | K94: 115655 | M94: 3877 | N94: 27225 | O94: 570176 | P94: 601278 | Q94: -98102
A95: 88201 | B95: UNION COUNTY | C95: 35544.73 | D95: 0.003026178747 | E95: -426599 | F95: -118420 | G95: -684508 | H95: 28516 | I95: 4663 | J95: 51860 | K95: 85039 | M95: 2851 | N95: 20018 | O95: 419238 | P95: 442107 | Q95: -72132
A96: 89201 | B96: VAN BUREN COUNTY | C96: 36737.92 | D96: 0.003127763601 | E96: -440919 | F96: -122395 | G96: -707486 | H96: 29474 | I96: 4819 | J96: 53600 | K96: 87893 | M96: 2946 | N96: 20690 | O96: 433311 | P96: 456947 | Q96: -74554
A97: 90201 | B97: WAPELLO COUNTY | C97: 75801.17 | D97: 0.006453499285 | E97: -909746 | F97: -252538 | G97: -1459751 | H97: 60813 | I97: 9944 | J97: 110594 | K97: 181351 | M97: 6079 | N97: 42689 | O97: 894049 | P97: 942817 | Q97: -153826
A98: 91201 | B98: WARREN COUNTY | C98: 146718.72 | D98: 0.01249122084 | E98: -1760880 | F98: -488806 | G98: -2825456 | H98: 117708 | I98: 19247 | J98: 214062 | K98: 351017 | M98: 11767 | N98: 82628 | O98: 1730498 | P98: 1824893 | Q98: -297742
A99: 92201 | B99: WASHINGTON COUNTY | C99: 116935.64 | D99: 0.009955572838 | E99: -1403431 | F99: -389581 | G99: -2251904 | H99: 93814 | I99: 15340 | J99: 170609 | K99: 279763 | M99: 9379 | N99: 65855 | O99: 1379217 | P99: 1454451 | Q99: -237302
A100: 93201 | B100: WAYNE COUNTY | C100: 42221.76 | D100: 0.003594642378 | E100: -506735 | F100: -140665 | G100: -813091 | H100: 33873 | I100: 5539 | J100: 61601 | K100: 101013 | M100: 3386 | N100: 23778 | O100: 497992 | P100: 525156 | Q100: -85682
A101: 94201 | B101: WEBSTER COUNTY | C101: 107901.49 | D101: 0.009186430613 | E101: -1295006 | F101: -359483 | G101: -2077928 | H101: 86566 | I101: 14155 | J101: 157428 | K101: 258149 | M101: 8654 | N101: 60767 | O101: 1272662 | P101: 1342083 | Q101: -218969
A102: 95201 | B102: WINNEBAGO COUNTY | C102: 47426.01 | D102: 0.004037717645 | E102: -569195 | F102: -158004 | G102: -913313 | H102: 38048 | I102: 6222 | J102: 69194 | K102: 113464 | M102: 3804 | N102: 26709 | O102: 559374 | P102: 589887 | Q102: -96244
A103: 96201 | B103: WINNESHIEK COUNTY | C103: 82263.3 | D103: 0.007003666932 | E103: -987303 | F103: -274067 | G103: -1584197 | H103: 65997 | I103: 10792 | J103: 120022 | K103: 196811 | M103: 6598 | N103: 46328 | O103: 970268 | P103: 1023194 | Q103: -166940
A104: 97201 | B104: WOODBURY COUNTY | C104: 305843.54 | D104: 0.02603866229 | E104: -3670655 | F104: -1018943 | G104: -5889824 | H104: =ROUND(D104*$H$7,0)+1 -> 245370 | I104: 40122 | J104: 446224 | K104: 731716 | M104: 24529 | N104: 172242 | O104: 3607322 | P104: 3804093 | Q104: -620661
A105: 98201 | B105: WORTH COUNTY | C105: 71191.94 | D105: 0.006061082354 | E105: -854427 | F105: -237182 | G105: -1370989 | H105: 57115 | I105: 9339 | J105: 103869 | K105: 170323 | M105: 5710 | N105: 40093 | O105: 839685 | P105: 885488 | Q105: -144473
A106: 99201 | B106: WRIGHT COUNTY | C106: 61581.38 | D106: 0.005242866196 | E106: -739084 | F106: -205164 | G106: -1185912 | H106: 49405 | I106: 8079 | J106: 89847 | K106: 147331 | M106: 4939 | N106: 34681 | O106: 726332 | P106: 765952 | Q106: -124970
J107: =ROUND(D107*$J$7,0) -> 0
B108: Total for all entities | C108: =SUM(C8:C106) -> 11745747.02 | D108: 1 | E108: -140969430 | F108: -39131940 | G108: -226195336 | H108: 9423262 | I108: 1540868 | J108: =SUM(J8:J107) -> 17136989 | K108: =SUM(K8:K106) -> 28101119 | M108: =SUM(M8:M106) -> 942036 | N108: =SUM(N8:N106) -> 6614869 | O108: =SUM(O8:O106) -> 138537163 | P108: =SUM(P8:P106) -> 146094068 | Q108: =SUM(Q8:Q106) -> -23836136
C109: =+C7-C108 -> 0 | D109: 0 | E109: 0 | F109: 0 | G109: 0 | H109: 0 | I109: 0 | J109: 0 | K109: 0 | L109: 0 | M109: 0 | N109: 0 | O109: 0 | P109: 0 | Q109: 0
A111: * - Employer specific amounts excluded from this Schedule are the changes in proportion and differences between employer contributions and the proportionate share of contributions, as well as the related amortization as defined in paragraphs 54-55 of GASB Statement No. 68, Accounting and Financial Reporting for Pensions.
A113: ** - The proportions in this spreadsheet are for this membership group only, not the proportions to use to compute the change in entity proportion for the Pension note which is included in the Notes to Financial Statements. The Employer Calculation of Total Net Pension Liability/(Asset) and Proportion workbook, which is available on the IPERS website, details how to calculate an employer's proportion and net pension liability/(asset) to comply with GASB Statement No. 68.
